bitfinex/quotes_ETHUSD_20230904
["timestamp","ask_amount","ask_price","bid_price","bid_amount"]
[1693843811282,0.101,1629.5,1629.4,10.72688562]
[1693843811501,0.101,1629.5,1629.4,29.13854562]
[1693843811707,0.101,1629.5,1629.4,29.38711438]
[1693843811925,0.101,1629.5,1629.4,6.38578876]
[1693843812203,0.101,1629.5,1629.4,12.52300876]
[1693843812401,0.101,1629.5,1629.4,18.66389688]
[1693843812701,0.101,1629.5,1629.4,21.73091114]
[1693843816582,0.101,1629.5,1629.4,0.25223688]
[1693843816982,0.101,1629.5,1629.4,12.52667688]
[1693843817182,0.101,1629.5,1629.4,23.89731383]
[1693843820830,0.101,1629.5,1629.4,21.73091114]
[1693843820983,0.101,1629.5,1629.4,6.38945688]
[1693843821516,0.101,1629.5,1629.4,12.52667688]
[1693843824543,0.101,1629.5,1629.4,0.25223688]
[1693843825599,0.101,1629.5,1629.4,6.38945688]
[1693843827434,0.101,1629.5,1629.4,12.52667688]
[1693843827615,0.101,1629.5,1629.4,18.66389688]
[1693843829355,0.101,1629.5,1629.4,23.59730083]
[1693843829560,0.101,1629.5,1629.4,25.57530083]
[1693843830020,0.101,1629.5,1629.4,26.21659788]
[1693843832337,0.101,1629.5,1629.4,26.22086201]
[1693843832718,0.101,1629.5,1629.4,26.60461377]
[1693843832924,0.101,1629.5,1629.4,25.96331672]
[1693843833327,0.101,1629.5,1629.4,23.98531672]
[1693843836787,0.101,1629.5,1629.4,25.96331672]
[1693843837140,0.101,1629.5,1629.4,23.98531672]
[1693843837454,0.101,1629.5,1629.4,0.64025277]
[1693843838880,0.101,1629.5,1629.4,6.77747277]
[1693843839096,0.101,1629.5,1629.4,12.91469277]
[1693843839274,0.101,1629.5,1629.4,19.05191277]
[1693843839587,0.101,1629.5,1629.4,12.91469277]
[1693843839887,0.101,1629.5,1629.4,15.98170703]
[1693843843600,0.101,1629.5,1629.4,9.84448703]
[1693843844276,0.101,1629.5,1629.4,0.64025277]
[1693843846901,0.101,1629.5,1629.4,6.77747277]
[1693843848811,0.101,1629.5,1629.4,0.64025277]
[1693843850375,0.74412487,1629.5,1629.4,0.64025277]
[1693843851204,0.101,1629.5,1629.4,6.77747277]
[1693843851519,0.101,1629.5,1629.4,12.91469277]
[1693843854113,0.101,1629.5,1629.4,22.11892703]
[1693843857723,0.101,1629.5,1629.4,24.33081973]
[1693843859227,0.101,1629.5,1629.4,12.05637973]
[1693843859523,0.101,1629.5,1629.4,9.84448703]
[1693843859881,0.101,1629.5,1629.4,12.91469277]
[1693843863885,0.101,1629.5,1629.4,0.64025277]
[1693843864230,6.88097487,1629.5,1629.4,0.64025277]
[1693843869125,19.15467487,1629.5,1629.4,0.64025277]
[1693843869309,22.17712109,1629.5,1629.4,0.64025277]
[1693843869496,22.36724285,1629.5,1629.4,0.64025277]
[1693843869700,25.36724285,1629.5,1629.4,0.00793225]
[1693843870245,2.13975382,1629.4,1629.1,12.2763]
[1693843870438,2.78347681,1629.4,1629.2,12.2757]
[1693843870598,2.13975382,1629.4,1629.2,12.2757]
[1693843870793,2.78347681,1629.4,1629.2,12.89783485]
[1693843871221,2.78347681,1629.4,1629.3,0.00669122]
[1693843871412,2.13975382,1629.4,1629.3,0.00669122]
[1693843873654,2.78347681,1629.4,1629.3,0.00669122]
[1693843873855,2.13975382,1629.4,1629.3,0.00669122]
[1693843874367,8.27697382,1629.4,1629.3,0.00669122]
[1693843876872,14.41419382,1629.4,1629.3,0.00669122]
[1693843877237,8.27697382,1629.4,1629.3,0.00669122]
[1693843877747,2.13975382,1629.4,1629.3,0.00669122]
[1693843879775,2.13975382,1629.4,1629.3,18.41949122]
[1693843879951,2.13975382,1629.4,1629.3,21.53741683]
[1693843880472,2.13975382,1629.4,1629.3,29.01843109]
[1693843882358,2.13975382,1629.4,1629.3,9.21130548]
[1693843882913,2.13975382,1629.4,1629.3,0.00669122]
[1693843883085,2.13975382,1629.4,1629.3,6.14429122]
[1693843883240,2.13975382,1629.4,1629.3,12.28189122]
[1693843883557,2.13975382,1629.4,1629.3,18.41949122]
[1693843883763,2.13975382,1629.4,1629.3,23.39066809]
[1693843885160,2.13975382,1629.4,1629.3,22.10781508]
[1693843885438,2.13975382,1629.4,1629.3,0.62800082]
[1693843885740,2.13975382,1629.4,1629.3,6.76560082]
[1693843886158,2.13975382,1629.4,1629.3,12.90320082]
[1693843887161,2.13975382,1629.4,1629.3,19.04080082]
[1693843887501,2.13975382,1629.4,1629.3,21.9297529]
[1693843887991,2.13975382,1629.4,1629.3,24.99676716]
[1693843892920,2.13975382,1629.4,1629.3,29.41076716]
[1693843900461,2.13975382,1629.4,1629.3,26.52181508]
[1693843901302,2.13975382,1629.4,1629.3,25.10781508]
[1693843902935,2.13975382,1629.4,1629.3,22.04080082]
[1693843905017,2.13975382,1629.4,1629.3,19.04080082]
[1693843905398,2.13975382,1629.4,1629.3,0.62800082]
[1693843905859,8.27697382,1629.4,1629.3,0.62800082]
[1693843906040,2.13975382,1629.4,1629.3,0.62800082]
[1693843906367,8.27697382,1629.4,1629.3,0.62800082]
[1693843908632,8.27697382,1629.4,1629.3,0.62800082]
[1693843910052,14.41419382,1629.4,1629.3,0.62800082]
[1693843916202,8.27697382,1629.4,1629.3,0.62800082]
[1693843916401,2.13975382,1629.4,1629.3,0.62800082]
[1693843916604,2.13975382,1629.4,1629.3,12.90320082]
[1693843917488,2.13975382,1629.4,1629.3,19.76644902]
[1693843918962,2.13975382,1629.4,1629.3,22.83346328]
[1693843930143,2.13975382,1629.4,1629.3,7.49124902]
[1693843930437,2.13975382,1629.4,1629.3,0.62800082]
[1693843930736,14.41419382,1629.4,1629.3,0.62800082]
[1693843931625,8.27697382,1629.4,1629.3,0.62800082]
[1693843932235,2.13975382,1629.4,1629.3,0.62800082]
[1693843942330,8.27697382,1629.4,1629.3,0.62800082]
[1693843946564,14.41419382,1629.4,1629.3,0.62800082]
[1693843951064,22.60898604,1629.4,1629.3,0.62800082]
[1693843952161,23.65122024,1629.4,1629.3,0.62800082]
[1693843952601,24.61657857,1629.4,1629.3,0.62800082]
[1693843952986,24.61657857,1629.4,1629.3,0.00669122]
[1693843953298,24.61657857,1629.4,1629.3,0.64242413]
[1693843953490,26.16217857,1629.4,1629.3,0.64242413]
[1693843953804,24.61657857,1629.4,1629.0,6.13869]
[1693843953964,25.11994437,1629.4,1629.0,6.13869]
[1693843954276,25.11994437,1629.4,1629.1,0.00644883]
[1693843954477,24.15458604,1629.4,1629.1,0.64901729]
[1693843956003,6.13798,1629.2,1629.1,0.64901729]
[1693843957805,12.27596,1629.2,1629.1,0.64901729]
[1693843962129,13.68996,1629.2,1629.1,0.64901729]
[1693843962585,18.41394,1629.2,1629.1,0.64901729]
[1693843979733,19.82794,1629.2,1629.1,0.64901729]
[1693843983544,18.41394,1629.2,1629.1,0.64901729]
[1693843983746,6.13798,1629.2,1629.1,0.64901729]
[1693843986332,18.41394,1629.2,1629.1,0.64901729]
[1693843988923,19.82794,1629.2,1629.1,0.64901729]
[1693843989554,20.47151222,1629.2,1629.1,0.64901729]
[1693843990233,21.39215299,1629.2,1629.1,0.64901729]
[1693843990427,22.48512967,1629.2,1629.1,0.64901729]
[1693843990782,21.39215299,1629.2,1629.1,0.64901729]
[1693843992073,22.48518945,1629.2,1629.1,0.64901729]
[1693843992284,21.39215299,1629.2,1629.1,0.64901729]
[1693843992470,13.19660077,1629.2,1629.1,0.64901729]
[1693843993464,7.05862077,1629.2,1629.1,0.64901729]
[1693843994584,13.19660077,1629.2,1629.1,0.64901729]
[1693843994877,13.84017299,1629.2,1629.1,0.64901729]
[1693843996042,19.97815299,1629.2,1629.1,0.64901729]
[1693843996679,21.07183779,1629.2,1629.1,0.64901729]
[1693843997807,2.01432557,1629.2,1629.1,0.64901729]
[1693843998007,0.92064077,1629.2,1629.1,19.06406729]
[1693843998212,0.92064077,1629.2,1629.1,15.04479402]
[1693844008027,6.1376,1629.3,1629.1,15.04479402]
[1693844010016,18.41304,1629.3,1629.1,0.64901729]
[1693844010199,19.05661222,1629.3,1629.1,0.64901729]
[1693844015286,12.91889222,1629.3,1629.1,0.64901729]
[1693844015598,12.91889222,1629.3,1629.1,6.78734729]
[1693844019727,6.78117222,1629.3,1629.1,6.78734729]
[1693844020095,0.64357222,1629.3,1629.1,12.92569729]
[1693844021648,16.94401214,1629.4,1629.1,12.92569729]
[1693844025043,16.94401214,1629.4,1629.1,6.78734729]
[1693844025221,0.64357222,1629.3,1629.1,6.78734729]
[1693844025425,6.78139222,1629.3,1629.1,6.78734729]
[1693844030453,19.05703222,1629.3,1629.1,0.64901729]
[1693844030657,20.47103222,1629.3,1629.1,0.64901729]
[1693844037681,21.43639055,1629.3,1629.1,0.64901729]
[1693844038954,0.64357222,1629.2,1629.1,0.64901729]
[1693844039169,20.1159454,1629.2,1629.1,0.64901729]
[1693844039681,20.1159506,1629.2,1629.1,0.64901729]
[1693844042280,21.08130893,1629.2,1629.1,0.64901729]
[1693844043382,22.49530893,1629.2,1629.1,0.64901729]
[1693844046015,21.5299506,1629.2,1629.1,0.64901729]
[1693844046685,22.49530893,1629.2,1629.1,0.64901729]
[1693844047202,24.91875097,1629.2,1629.1,0.64901729]
[1693844048072,30.85531397,1629.2,1629.1,0.64901729]
[1693844048609,0.27167998,1629.1,1628.7,3.7568]
[1693844048766,18.41643,1629.0,1628.7,3.7568]
[1693844049270,18.41643,1629.0,1628.8,0.00574007]
[1693844049679,22.04213503,1629.0,1628.8,0.00574007]
[1693844050074,20.62813503,1629.0,1628.9,0.62804319]
[1693844050386,27.05145539,1629.0,1628.9,0.62804319]
[1693844050699,40.06420215,1629.0,1628.8,0.00574007]
[1693844051018,34.19503597,1629.0,1628.9,0.61424282]
[1693844051222,38.41592433,1629.0,1628.9,0.00573231]
[1693844051421,38.41592433,1629.0,1628.5,6.14049]
[1693844051721,13.20089338,1628.7,1628.4,12.28176]
[1693844051921,13.20089338,1628.7,1628.6,0.57729872]
[1693844052224,13.20089338,1628.7,1628.4,18.42275]
[1693844052225,7.06078338,1628.7,1628.4,18.42275]
[1693844052432,0.92092338,1628.7,1628.6,0.005284]
[1693844052799,7.06078338,1628.7,1628.6,0.005284]
[1693844056627,13.20064338,1628.7,1628.6,0.005284]
[1693844058432,13.20064338,1628.7,1628.6,0.57732076]
[1693844058793,13.20064338,1628.7,1628.4,12.28165]
[1693844059002,13.20064338,1628.7,1628.4,14.15169481]
[1693844059523,13.20064338,1628.7,1628.5,0.00529176]
[1693844059753,13.20064338,1628.7,1628.5,6.14588176]
[1693844064833,13.20064338,1628.7,1628.6,0.57699025]
[1693844065351,13.20064338,1628.7,1628.6,0.58227425]
[1693844095600,13.84417544,1628.7,1628.6,0.58227425]
[1693844097542,14.91480206,1628.7,1628.6,0.58227425]
[1693844097919,21.05466206,1628.7,1628.6,0.58227425]
[1693844101322,22.01996016,1628.7,1628.6,0.58227425]
[1693844101652,21.05466206,1628.7,1628.6,0.58227425]
[1693844103972,22.01996016,1628.7,1628.6,0.58227425]
[1693844104649,22.02128936,1628.7,1628.6,0.58227425]
[1693844104976,21.3764281,1628.7,1628.6,0.58227425]
[1693844105387,22.7904281,1628.7,1628.6,0.58227425]
[1693844105555,29.0446966,1628.7,1628.6,0.58227425]
[1693844105865,27.43682972,1628.7,1628.6,0.58227425]
[1693844106627,30.50384398,1628.7,1628.6,0.58227425]
[1693844107033,30.98384398,1628.7,1628.6,0.58227425]
[1693844107272,32.5204466,1628.7,1628.6,0.58227425]
[1693844107426,0.33876222,1628.5,1628.2,8.39635]
[1693844107630,6.14099,1628.4,1628.2,8.39635]
[1693844107881,6.14099,1628.4,1628.3,0.53593392]
[1693844108393,12.28198,1628.4,1628.3,0.54103671]
[1693844109182,6.14099,1628.4,1628.3,0.54103671]
[1693844109747,12.28198,1628.4,1628.3,0.54103671]
[1693844110001,6.14099,1628.4,1628.3,0.54103671]
[1693844110687,12.28198,1628.4,1628.3,0.54103671]
[1693844116441,13.69598,1628.4,1628.3,0.54103671]
[1693844117632,12.28198,1628.4,1628.3,0.54103671]
[1693844118323,18.42297,1628.4,1628.3,0.54103671]
[1693844119193,21.48998426,1628.4,1628.3,0.54103671]
[1693844123554,0.38011288,1628.3,1628.1,1.6173]
[1693844123855,6.52176288,1628.3,1628.0,14.41583]
[1693844124061,12.66333288,1628.3,1628.0,16.471677]
[1693844124432,12.66333288,1628.3,1628.1,6.14699206]
[1693844125031,12.66333288,1628.3,1628.2,0.50235547]
[1693844125429,12.66333288,1628.3,1628.2,0.50726977]
[1693844126438,0.38011288,1628.3,1628.2,0.50726977]
[1693844126640,12.66319288,1628.3,1628.2,0.50726977]
[1693844132387,12.66319288,1628.3,1628.2,0.510298]
[1693844141367,18.80476288,1628.3,1628.2,0.510298]
[1693844150707,19.44941148,1628.3,1628.2,0.510298]
[1693844154256,12.66319288,1628.3,1628.2,0.510298]
[1693844155379,0.38011288,1628.3,1628.2,12.793798]
[1693844156216,0.38011288,1628.3,1628.2,6.652048]
[1693844160370,0.38011288,1628.3,1628.2,8.5456398]
[1693844166386,0.38011288,1628.3,1628.2,14.6873898]
[1693844170305,0.38011288,1628.3,1628.2,20.8291398]
[1693844170506,0.38011288,1628.3,1628.2,22.2431398]
[1693844170830,0.38011288,1628.3,1628.2,26.88459859]
[1693844171100,31.0946486,1628.9,1628.2,33.34624655]
[1693844171403,0.92097992,1628.6,1628.5,18.42186]
[1693844171722,1.6116216,1628.9,1628.5,25.97648]
[1693844171866,1.6116216,1628.9,1628.6,1.414]
[1693844171867,7.7507716,1628.9,1628.6,1.414]
[1693844172069,1.6116216,1628.9,1628.7,12.27972]
[1693844172371,1.6116216,1628.9,1628.7,12.28763213]
[1693844172572,10.7507516,1628.9,1628.7,12.28763213]
[1693844172913,10.106103,1628.9,1628.7,6.14777213]
[1693844173110,16.245233,1628.9,1628.7,6.14777213]
[1693844173616,0.966973,1628.9,1628.7,21.44022034]
[1693844173766,0.966973,1628.9,1628.8,1.414]
[1693844174213,0.92069727,1629.1,1628.8,19.83244]
[1693844174916,12.2762,1629.2,1628.8,19.83244]
[1693844175071,12.9208486,1629.2,1628.8,19.83244]
[1693844175268,12.9208486,1629.2,1628.8,20.57362002]
[1693844175466,12.2762,1629.2,1628.8,20.57362002]
[1693844176368,12.2762,1629.2,1628.9,0.00788478]
[1693844176604,12.2762,1629.2,1629.0,6.13873]
[1693844176923,6.13808,1629.2,1629.0,6.13873]
[1693844178224,12.2762,1629.2,1629.0,6.13873]
[1693844179836,12.2762,1629.2,1628.9,14.41568478]
[1693844181151,18.41432,1629.2,1628.9,0.00788478]
[1693844181454,18.41619,1629.0,1628.9,0.00788478]
[1693844182148,18.41619,1629.0,1628.9,0.41570854]
[1693844182452,18.41619,1629.0,1628.9,0.40782376]
[1693844182953,18.41619,1629.0,1628.6,14.45334]
[1693844183107,12.27746,1629.0,1628.6,17.926716]
[1693844183310,12.27746,1629.0,1628.7,0.0075973]
[1693844183560,6.13873,1629.0,1628.7,0.0075973]
[1693844183713,6.13873,1629.0,1628.8,6.13948]
[1693844184438,6.13873,1629.0,1628.9,0.00758145]
[1693844184831,6.13873,1629.0,1628.9,0.41540521]
[1693844188906,7.05907727,1629.1,1628.9,12.69362521]
[1693844188907,0.92069727,1629.1,1628.9,12.69362521]
[1693844189111,0.92069727,1629.1,1628.9,14.57691773]
[1693844191556,10.71622,1629.3,1628.9,22.13002773]
[1693844191758,16.19602426,1629.3,1628.9,22.13002773]
[1693844191947,16.19602426,1629.3,1628.9,24.36442773]
[1693844192147,16.19602426,1629.3,1628.9,16.81131773]
[1693844192348,22.33374426,1629.3,1628.9,8.78868521]
[1693844193575,22.33374426,1629.3,1628.9,14.92779521]
[1693844197356,22.33374426,1629.3,1628.9,8.78868521]
[1693844205104,22.33374426,1629.3,1628.9,2.64980521]
[1693844205262,1.414,1629.2,1628.9,0.41540521]
[1693844205465,1.414,1629.0,1628.9,0.41540521]
[1693844205662,19.83019,1629.0,1628.9,0.41540521]
[1693844206185,19.83019,1629.0,1628.9,0.00758145]
[1693844206391,12.27912,1628.8,1628.5,6.14047]
[1693844206795,12.27912,1628.8,1628.5,12.28109]
[1693844207311,7.05245886,1628.9,1628.5,20.650538]
[1693844207608,7.05234886,1628.9,1628.7,6.13986]
[1693844208377,7.05234886,1628.9,1628.8,0.00673893]
[1693844209389,7.05233886,1628.9,1628.8,0.00673893]
[1693844214704,13.19144886,1628.9,1628.8,0.00673893]
[1693844214907,13.19144886,1628.9,1628.8,0.41908124]
[1693844216088,19.33055886,1628.9,1628.8,0.41908124]
[1693844217494,19.97520746,1628.9,1628.8,0.41908124]
[1693844217898,19.33055886,1628.9,1628.8,0.41908124]
[1693844218593,19.97520746,1628.9,1628.8,0.41908124]
[1693844220620,19.33055886,1628.9,1628.8,0.41908124]
[1693844222499,19.97520746,1628.9,1628.8,0.41908124]
[1693844224326,24.45622172,1628.9,1628.8,0.41908124]
[1693844224533,27.77854602,1628.9,1628.8,0.41908124]
[1693844224730,27.77854602,1628.9,1628.8,0.00673893]
[1693844225126,29.43224602,1628.9,1628.8,0.42635483]
[1693844225547,27.77854602,1628.9,1628.8,0.42635483]
[1693844225758,27.77854602,1628.9,1628.8,0.00673893]
[1693844225960,29.38164602,1628.9,1628.8,0.00673893]
[1693844226164,29.38164602,1628.9,1628.8,0.42635483]
[1693844226335,27.77854602,1628.9,1628.8,0.42635483]
[1693844226535,27.77854602,1628.9,1628.8,0.00673893]
[1693844226937,29.38164602,1628.9,1628.8,0.42635483]
[1693844227340,34.38490861,1628.9,1628.8,0.42635483]
[1693844227652,34.38490861,1628.9,1628.8,0.00673893]
[1693844227837,36.84213561,1628.9,1628.8,0.00673893]
[1693844228038,38.44523561,1628.9,1628.8,0.00673893]
[1693844228238,36.83551554,1628.9,1628.8,0.00673893]
[1693844228539,36.83551554,1628.9,1628.5,6.14045]
[1693844228540,27.96619596,1628.9,1628.5,6.14045]
[1693844228861,22.47072742,1628.9,1628.6,6.14023]
[1693844229057,28.60983742,1628.9,1628.6,0.42009375]
[1693844229573,28.60983742,1628.9,1628.7,0.00674562]
[1693844230143,27.00673742,1628.9,1628.8,0.42004906]
[1693844230335,27.00673742,1628.9,1628.8,0.42678675]
[1693844230544,26.36309596,1628.9,1628.8,0.42678675]
[1693844231943,27.00657784,1628.9,1628.8,0.42678675]
[1693844232143,26.36309596,1628.9,1628.8,0.42678675]
[1693844233288,27.77709596,1628.9,1628.8,0.42678675]
[1693844233951,32.06416009,1628.9,1628.8,0.42678675]
[1693844234154,32.77442787,1628.9,1628.8,0.00673769]
[1693844234487,36.00934794,1628.9,1628.3,1.5854]
[1693844234681,18.42093,1628.6,1628.3,1.5854]
[1693844234855,18.42093,1628.6,1628.4,0.42029652]
[1693844235250,18.42093,1628.6,1628.3,1.5854]
[1693844235455,18.42093,1628.6,1628.5,0.00676621]
[1693844236370,18.42093,1628.6,1628.3,7.72676]
[1693844237585,18.42093,1628.6,1628.4,0.00677543]
[1693844237751,19.83493,1628.6,1628.4,0.00677543]
[1693844238448,19.83493,1628.6,1628.2,9.93076]
[1693844239459,19.83493,1628.6,1628.3,0.00678336]
[1693844240491,3.0,1628.5,1628.3,0.00678336]
[1693844240691,18.42297,1628.4,1628.3,0.00678336]
[1693844241395,19.83697,1628.4,1628.0,8.42353]
[1693844241594,19.83697,1628.4,1628.0,3.8252]
[1693844242465,19.83697,1628.4,1628.1,0.00680571]
[1693844245166,19.83697,1628.4,1628.2,0.42156048]
[1693844246394,19.83697,1628.4,1628.3,0.00679113]
[1693844246703,23.38398426,1628.4,1628.3,0.00679113]
[1693844247465,26.38398426,1628.4,1628.3,0.00679113]
[1693844247873,26.38398426,1628.4,1628.3,0.42828972]
[1693844249506,26.38398426,1628.4,1628.3,0.42149859]
[1693844249689,26.38398426,1628.4,1628.0,1.5441]
[1693844249890,26.38398426,1628.4,1628.1,0.42125064]
[1693844249891,3.0,1628.3,1628.1,0.42125064]
[1693844250089,12.2835,1628.2,1628.1,0.42125064]
[1693844250315,19.83925,1628.2,1628.1,0.42125064]
[1693844250786,19.83925,1628.2,1627.9,3.7365]
[1693844252919,22.297156,1628.2,1627.9,3.7365]
[1693844253494,25.36417026,1628.2,1627.9,1.5943]
[1693844253718,3.0,1628.1,1627.9,1.5943]
[1693844254023,12.285,1628.0,1627.9,1.5943]
[1693844255541,18.4275,1628.0,1627.8,2.2133]
[1693844257142,18.4275,1628.0,1627.7,1.7296]
[1693844259727,18.4275,1628.0,1627.8,0.49421275]
[1693844260658,18.4275,1628.0,1627.8,0.39421275]
[1693844264415,21.49451426,1628.0,1627.8,0.39421275]
[1693844264622,1.414,1627.9,1627.8,0.39421275]
[1693844264818,7.48101426,1627.9,1627.8,0.39421275]
[1693844265067,23.24677426,1627.9,1627.8,0.58803286]
[1693844265266,29.38965426,1627.9,1627.8,0.58803286]
[1693844265471,29.38965426,1627.9,1627.7,0.1]
[1693844265634,4.48101426,1627.8,1627.7,0.1]
[1693844265836,25.91079426,1627.8,1627.7,0.1]
[1693844266154,25.91079426,1627.8,1627.7,0.6644608]
[1693844266665,26.39079426,1627.8,1627.7,0.1]
[1693844266832,26.39079426,1627.8,1627.7,0.6644608]
[1693844267455,24.97679426,1627.8,1627.7,0.67056964]
[1693844267639,24.49679426,1627.8,1627.7,0.67056964]
[1693844270477,25.91079426,1627.8,1627.7,0.67056964]
[1693844270986,25.91079426,1627.8,1627.7,0.10610884]
[1693844271485,25.91079426,1627.8,1627.7,0.1]
[1693844276008,32.53405426,1627.8,1627.7,0.1]
[1693844277691,33.03616009,1627.8,1627.7,0.1]
[1693844279987,21.93188583,1627.8,1627.7,0.1]
[1693844280311,18.93188583,1627.8,1627.7,0.10613437]
[1693844280515,18.93188583,1627.8,1627.7,0.67011361]
[1693844281602,21.93188583,1627.8,1627.7,0.67011361]
[1693844283618,24.99890009,1627.8,1627.7,0.67011361]
[1693844285632,26.41290009,1627.8,1627.7,0.67011361]
[1693844286041,26.89290009,1627.8,1627.7,0.67011361]
[1693844286536,26.89290009,1627.8,1627.7,0.1]
[1693844287445,26.89290009,1627.8,1627.7,0.66397924]
[1693844288418,26.89290009,1627.8,1627.7,0.67011332]
[1693844289540,26.89290009,1627.8,1627.7,0.10613408]
[1693844290435,26.89290009,1627.8,1627.7,0.1]
[1693844300442,26.89290009,1627.8,1627.7,0.67184504]
[1693844300864,26.89290009,1627.8,1627.7,0.10613857]
[1693844301368,26.89290009,1627.8,1627.7,0.1]
[1693844302447,26.89290009,1627.8,1627.7,0.66570647]
[1693844303374,26.89290009,1627.8,1627.7,0.6718442]
[1693844306476,26.89290009,1627.8,1627.7,0.1]
[1693844306675,26.89290009,1627.8,1627.7,0.66570647]
[1693844306882,25.47890009,1627.8,1627.7,0.66570647]
[1693844307046,21.93188583,1627.8,1627.7,0.1]
[1693844307376,21.93188583,1627.8,1627.7,0.67142307]
[1693844308895,22.5753404,1627.8,1627.7,0.67142307]
[1693844309210,23.9893404,1627.8,1627.7,0.67142307]
[1693844309549,25.12524089,1627.8,1627.7,0.67142307]
[1693844309979,26.09042274,1627.8,1627.7,0.67142307]
[1693844310249,28.51398243,1627.8,1627.7,0.67142307]
[1693844310609,28.99398243,1627.8,1627.7,0.10613773]
[1693844310902,30.28104656,1627.8,1627.7,0.10613773]
[1693844311454,30.28104656,1627.8,1627.7,0.1]
[1693844313901,30.68165116,1627.8,1627.7,0.1]
[1693844315964,32.28705701,1627.8,1627.7,0.1]
[1693844318063,30.68165116,1627.8,1627.7,0.1]
[1693844318459,30.99999288,1627.8,1627.7,0.1]
[1693844322384,32.2875891,1627.8,1627.7,0.1]
[1693844323825,30.99999288,1627.8,1627.7,0.1]
[1693844323964,32.28743791,1627.8,1627.7,0.1]
[1693844326316,30.20203206,1627.8,1627.7,0.1]
[1693844326667,30.20203206,1627.8,1627.7,0.66528534]
[1693844327369,30.20203206,1627.8,1627.7,0.67142335]
[1693844329169,30.20203206,1627.8,1627.7,0.10613801]
[1693844329474,30.20203206,1627.8,1627.7,0.67142335]
[1693844330117,36.82529206,1627.8,1627.7,0.67142335]
[1693844330313,36.82529206,1627.8,1627.7,0.10613801]
[1693844330522,36.82529206,1627.8,1627.7,0.1]
[1693844340233,37.14325288,1627.8,1627.7,0.1]
[1693844350025,35.53784703,1627.8,1627.7,0.1]
[1693844350230,37.14659674,1627.8,1627.7,0.1]
[1693844350560,35.53784703,1627.8,1627.7,0.1]
[1693844351160,37.14627127,1627.8,1627.7,0.1]
[1693844351311,38.43294957,1627.8,1627.7,0.1]
[1693844352450,37.14627127,1627.8,1627.7,0.1]
[1693844353755,36.69487874,1627.8,1627.7,0.1]
[1693844353944,36.69487874,1627.8,1627.7,0.56602711]
[1693844354356,36.69487874,1627.8,1627.7,0.572164]
[1693844365254,33.62786448,1627.8,1627.7,0.572164]
[1693844365654,34.91521185,1627.8,1627.7,0.572164]
[1693844367006,33.62786448,1627.8,1627.7,0.572164]
[1693844367298,36.69487874,1627.8,1627.7,0.572164]
[1693844367655,36.69487874,1627.8,1627.7,0.10613689]
[1693844368458,36.69487874,1627.8,1627.7,0.1]
[1693844371507,37.17487874,1627.8,1627.7,0.1]
[1693844372005,41.70951734,1627.8,1627.7,0.1]
[1693844372307,42.324268,1627.8,1627.7,0.1]
[1693844377220,42.324268,1627.8,1627.5,2.3795]
[1693844377221,3.0,1627.6,1627.5,2.3795]
[1693844377426,45.81985195,1627.6,1627.5,0.1]
[1693844377724,44.21116151,1627.6,1627.5,0.1]
[1693844377909,45.81984021,1627.6,1627.5,0.1]
[1693844378877,45.81984021,1627.6,1627.5,0.53039773]
[1693844379380,45.81984021,1627.6,1627.5,0.53655386]
[1693844380011,45.81984021,1627.6,1627.5,0.10615613]
[1693844380221,45.81984021,1627.6,1627.5,0.53655386]
[1693844380897,47.10523004,1627.6,1627.5,0.10615613]
[1693844381422,47.10523004,1627.6,1627.5,0.1]
[1693844382617,47.10323004,1627.6,1627.5,0.1]
[1693844382921,45.81784021,1627.6,1627.5,0.1]
[1693844383127,47.10291683,1627.6,1627.5,0.1]
[1693844387843,45.49423813,1627.6,1627.5,0.1]
[1693844390158,38.46806001,1627.6,1627.5,0.1]
[1693844390447,38.46806001,1627.6,1627.5,0.54882254]
[1693844391501,39.89701221,1627.6,1627.5,0.1]
[1693844392395,39.58677754,1627.6,1627.5,0.1]
[1693844394619,41.19545624,1627.6,1627.5,0.1]
[1693844394914,39.58677754,1627.6,1627.5,0.1]
[1693844399555,35.95628755,1627.6,1627.5,0.1]
[1693844400078,38.64405288,1627.6,1627.5,0.1]
[1693844401340,45.24921233,1627.6,1627.5,0.1]
[1693844401532,45.72921233,1627.6,1627.5,0.1]
[1693844403875,47.33789103,1627.6,1627.5,0.1]
[1693844404173,45.72921233,1627.6,1627.5,0.1]
[1693844404764,47.33789103,1627.6,1627.5,0.1]
[1693844405121,47.33551277,1627.6,1627.5,0.1]
[1693844405727,45.72683407,1627.6,1627.5,0.1]
[1693844406066,47.33551277,1627.6,1627.5,0.1]
[1693844406225,45.72683407,1627.6,1627.5,0.1]
[1693844407172,47.33551277,1627.6,1627.5,0.1]
[1693844407477,45.72683407,1627.6,1627.5,0.1]
[1693844408141,47.33551277,1627.6,1627.5,0.1]
[1693844409261,46.05281441,1627.6,1627.5,0.1]
[1693844413167,46.05281441,1627.6,1627.4,0.1]
[1693844413380,46.05281441,1627.6,1627.2,2.2269]
[1693844413381,2.68776533,1627.4,1627.2,2.2269]
[1693844413577,31.18750857,1627.3,1627.2,2.2269]
[1693844413758,34.18750857,1627.3,1627.2,2.2269]
[1693844419847,36.43492865,1627.3,1627.1,0.1]
[1693844419983,9.0957735,1627.2,1627.1,0.1]
[1693844420182,31.56479015,1627.2,1627.1,0.1]
[1693844420498,31.07910967,1627.2,1627.1,0.00595057]
[1693844420715,31.56451752,1627.2,1627.1,0.00595057]
[1693844421223,31.56451752,1627.2,1627.1,0.57958792]
[1693844421438,33.53872727,1627.2,1627.1,0.57958792]
[1693844422018,33.53872727,1627.2,1627.1,0.00595057]
[1693844422200,33.53872727,1627.2,1627.1,0.57958792]
[1693844423494,32.25656259,1627.2,1627.1,0.57958792]
[1693844424945,33.53872727,1627.2,1627.1,0.57958792]
[1693844425148,32.25656259,1627.2,1627.1,0.57958792]
[1693844425449,33.67056259,1627.2,1627.1,0.57958792]
[1693844426545,34.31053487,1627.2,1627.1,0.57958792]
[1693844429502,33.34939467,1627.2,1627.1,0.57958792]
[1693844432581,33.34939467,1627.2,1627.1,0.58175883]
[1693844433644,34.31053487,1627.2,1627.1,0.58175883]
[1693844435651,33.34939467,1627.2,1627.1,0.58175883]
[1693844436043,34.31053487,1627.2,1627.1,0.58175883]
[1693844436446,33.34939467,1627.2,1627.1,0.58175883]
[1693844436803,34.31053487,1627.2,1627.1,0.58175883]
[1693844438547,33.34939467,1627.2,1627.1,0.58175883]
[1693844444813,34.31053487,1627.2,1627.1,0.58175883]
[1693844450382,33.67056259,1627.2,1627.1,0.58175883]